fUST/lending_fUST_20240907
["ID","MTS","AMOUNT","RATE_DAILY","PERIOD"]
[337501842,1725720243912,-617.18909784,0.00037681,15]
[337501843,1725720243947,-500.0,0.00037681,15]
[337501844,1725720243974,-243.58155888,0.00037681,15]
[337501845,1725720244002,-500.0,0.00037681,15]
[337501846,1725720334145,-151.0,0.0003,120]
[337501847,1725720334168,-116.96826148,0.0003,120]
[337501848,1725720348105,-34.03173852,0.0003,120]
[337501849,1725720348130,-947.756089,0.00037604,60]
[337501852,1725720427111,-192.52266932,0.000299,2]
[337501853,1725720427136,-309.5763395,0.000299,2]
[337501854,1725720427157,-446.16595681,0.00037,15]
[337501855,1725720427186,-461.28262329,0.00037,15]
[337501856,1725720433090,-256.3014199,0.00037,15]
[337501857,1725720433112,-46.38569369,0.00037,60]
[337501858,1725720439145,-1283.61682518,0.00037,60]
[337501859,1725720443114,-1637.58450542,0.00037,60]
[337501860,1725720559540,162.86178608,0.000318,2]
[337501861,1725720631454,-1.04424692,0.000318,2]
[337501862,1725720631479,-1612.32261,0.00031892,2]
[337501863,1725720631507,-24900.0,0.00034517,2]
[337501864,1725720631532,-250.0,0.00034601,2]
[337501865,1725720631559,-2202.3422732,0.00034944,2]
[337501869,1725720631583,-2104.12230178,0.00037,60]
[337501870,1725720631607,-242.14384584,0.00037603,15]
[337501871,1725720631633,-484.02171839,0.00037603,7]
[337501872,1725720631657,-355.0,0.00037603,15]
[337501873,1725720631681,-87940.243911,0.00037604,60]
[337501874,1725720631704,-1010.46990929,0.000398,34]
[337501875,1725720631730,-151.09209365,0.0003992,2]
[337501876,1725720631753,-251.0,0.00040007,2]
[337501877,1725720631777,-170.664131,0.00045368,2]
[337501880,1725720631808,-668.99,0.00046555,3]
[337501881,1725720631833,-44855.7484303,0.00046565,5]
[337501882,1725720631858,-500.0,0.00046575,120]
[337501883,1725720631883,-500.0,0.00046575,120]
[337501884,1725720631906,-500.0,0.00046575,120]
[337501886,1725720631934,-500.0,0.00046849,120]
[337501889,1725720631958,-500.0,0.00046849,120]
[337501892,1725720631988,-500.0,0.00047123,120]
[337501895,1725720632012,-500.0,0.00047123,120]
[337501898,1725720632037,-500.0,0.00047397,120]
[337501901,1725720632075,-507.37412116,0.00047397,120]
[337501905,1725720632100,-500.0,0.00047671,120]
[337501908,1725720632125,-1612.32261,0.00047838,2]
[337501912,1725720632149,-500.0,0.00047945,120]
[337501915,1725720632173,-500.0,0.00048219,120]
[337501918,1725720632197,-500.0,0.00048493,120]
[337501922,1725720632221,-500.0,0.000485,22]
[337501926,1725720632247,-500.0,0.00048767,120]
[337501928,1725720632271,-500.0,0.00049041,120]
[337501931,1725720632301,-500.0,0.00049315,120]
[337501934,1725720632324,-1000.0,0.00049315,120]
[337501935,1725720632349,-1000.0,0.00049315,120]
[337501937,1725720632373,-1000.0,0.00049315,120]
[337501938,1725720632396,-1000.0,0.00049315,120]
[337501939,1725720632420,-287.68564043,0.00049315,120]
[337501940,1725720632446,-500.0,0.00049589,120]
[337501941,1725720632471,-500.0,0.00049863,120]
[337501942,1725720632494,-150.0,0.00050105,10]
[337501943,1725720632518,-500.0,0.00050136,120]
[337501944,1725720632540,-500.0,0.0005041,120]
[337501945,1725720632568,-500.0,0.00050684,120]
[337501946,1725720632591,-500.0,0.00050958,120]
[337501947,1725720632615,-44855.7484303,0.00051222,6]
[337501948,1725720632641,-500.0,0.00051232,120]
[337501949,1725720632666,-500.0,0.00051506,120]
[337501950,1725720632689,-500.0,0.0005178,120]
[337501951,1725720632713,-2000.0,0.00052,30]
[337501952,1725720632737,-168.217,0.00053912,101]
[337501953,1725720632760,-9656.93686376,0.00054694,2]
[337501954,1725720632786,-500.0,0.00054794,120]
[337501955,1725720632812,-500.0,0.00054794,120]
[337501956,1725720632837,-500.0,0.00054794,120]
[337501957,1725720632863,-500.0,0.00054794,120]
[337501958,1725720632887,-500.0,0.00054794,120]
[337501959,1725720632911,-500.0,0.00054794,120]
[337501960,1725720632936,-500.0,0.00054794,120]
[337501961,1725720632963,-500.0,0.00054794,120]
[337501962,1725720632989,-500.0,0.00054794,120]
[337501963,1725720633013,-818.77,0.00054794,120]
[337501964,1725720633040,-500.0,0.00054794,120]
[337501965,1725720633069,-500.0,0.00054794,120]
[337501966,1725720633095,-396.69532929,0.00054794,120]
[337501967,1725720633120,-150.0,0.00056,120]
[337501968,1725720633146,-150.0,0.00057,120]
[337501969,1725720633171,-200.0,0.00058,120]
[337501970,1725720633198,-500.0,0.00060273,120]
[337501971,1725720633226,-500.0,0.00060273,120]
[337501972,1725720633253,-253.7027457,0.00060273,120]
[337501973,1725720633278,-499.0,0.00060273,120]
[337501974,1725720633306,-500.0,0.00060273,120]
[337501975,1725720633332,-500.0,0.00060273,120]
[337501976,1725720633357,-456.28774001,0.00060273,120]
[337501977,1725720633381,-818.77,0.00060273,120]
[337501978,1725720633406,-500.0,0.00060273,120]
[337501979,1725720633430,-500.0,0.00060273,120]
[337501980,1725720633457,-150.0,0.00062,120]
[337501981,1725720633481,-150.0,0.00063,120]
[337501982,1725720633505,-160.0,0.00063803,15]
[337501983,1725720633533,-200.0,0.00064,120]
[337501984,1725720633560,-500.0,0.00065753,120]
[337501985,1725720633586,-500.0,0.00065753,120]
[337501986,1725720633610,-500.0,0.00065753,120]
[337501987,1725720633635,-818.77,0.00065753,120]
[337501988,1725720633661,-500.0,0.00065753,120]
[337501989,1725720633685,-500.0,0.00065753,120]
[337501990,1725720633710,-416.1787281,0.0006811,60]
[337501991,1725720633734,-750.0,0.00068493,120]
[337501992,1725720633758,-150.0,0.00069,120]
[337501993,1725720633783,-356.04052872,0.00071232,120]
[337501994,1725720633811,-500.0,0.00071232,120]
[337501995,1725720633836,-500.0,0.00071232,120]
[337501996,1725720633862,-818.77,0.00071232,120]
[337501997,1725720633888,-500.0,0.00071232,120]
[337501998,1725720633913,-500.0,0.00071232,120]
[337501999,1725720633938,-750.0,0.00072098,120]
[337502000,1725720633962,-168.217,0.00072608,120]
[337502001,1725720633991,-9656.93686373,0.00074746,2]
[337502002,1725720634017,-750.0,0.00075703,120]
[337502003,1725720634042,-500.0,0.00076712,120]
[337502004,1725720634074,-500.0,0.00076712,120]
[337502005,1725720634099,-818.77,0.00076712,120]
[337502006,1725720634124,-500.0,0.00076712,120]
[337502007,1725720634149,-500.0,0.00076712,120]
[337502008,1725720634174,-170.0,0.00077502,15]
[337502009,1725720634199,-163.906033,0.00077553,120]
[337502010,1725720634327,-750.0,0.00079308,120]
[337502011,1725720634355,-500.0,0.00082191,120]
[337502012,1725720634381,-500.0,0.00082191,120]
[337502013,1725720634406,-818.77,0.00082191,120]
[337502014,1725720634432,-500.0,0.00082191,120]
[337502015,1725720634457,-500.0,0.00082191,120]
[337502016,1725720634482,-750.0,0.00082913,120]
[337502017,1725720634508,-44855.7484303,0.0008499,14]
[337502018,1725720634532,-42315.0,0.00085,30]
[337502019,1725720634559,-750.0,0.00086518,120]
[337502020,1725720634584,-3000.0,0.00087,120]
[337502021,1725720634609,-500.0,0.00087671,120]
[337502022,1725720634635,-500.0,0.00087671,120]
[337502023,1725720634660,-818.77,0.00087671,120]
[337502024,1725720634687,-539.9384266,0.00087671,120]
[337502025,1725720634711,-361.83476049,0.00087671,120]
[337502026,1725720634736,-500.0,0.00088681,120]
[337502027,1725720634763,-44855.7484303,0.0008949,15]
[337502028,1725720634789,-30000.0,0.000895,120]
[337502029,1725720634815,-750.0,0.00090123,120]
[337502030,1725720634841,-500.0,0.00090608,120]
[337502031,1725720634865,-3000.0,0.00090609,120]
[337502032,1725720634889,-180.0,0.000912,60]
[337502033,1725720634914,-168.217,0.00091304,120]
[337502034,1725720634940,-500.0,0.0009315,120]
[337502035,1725720634965,-500.0,0.0009315,120]
[337502036,1725720634992,-818.77,0.0009315,120]
[337502037,1725720635017,-750.0,0.00093727,120]
[337502038,1725720635040,-3000.0,0.00094217,120]
[337502039,1725720635066,-9656.93686373,0.00094797,2]
[337502040,1725720635090,-750.0,0.00097332,120]
[337502041,1725720635115,-3000.0,0.00097826,120]
[337502042,1725720635143,-5574.18210518,0.0009799,61]
[337502043,1725720635171,-44855.7484303,0.0009799,17]
[337502044,1725720635196,-410.1493314,0.00098,120]
[337502045,1725720635221,-410.0411331,0.00098,120]
[337502046,1725720635246,-816.8163949,0.00098,120]
[337502047,1725720635271,-410.1087154,0.00098,120]
[337502048,1725720635296,-655.9436815,0.00098,120]
[337502049,1725720635321,-820.2986628,0.00098,120]
[337502050,1725720635346,-500.0,0.0009863,120]
[337502051,1725720635372,-500.0,0.0009863,120]
[337502052,1725720635396,-818.77,0.0009863,120]
[337502053,1725720635420,-1000.0,0.000999,120]
[337502054,1725720635445,-251.82713027,0.001,120]
[337502055,1725720635470,-1000.0,0.001,120]
[337502056,1725720635494,-5000.0,0.001,120]
[337502057,1725720635518,-5000.0,0.001,120]
[337502058,1725720635542,-5000.0,0.001,120]
[337502059,1725720635567,-5000.0,0.001,120]
[337502060,1725720635608,-5000.0,0.001,120]
[337502061,1725720635632,-5000.0,0.001,120]
[337502062,1725720635656,-2000.0,0.001,120]
[337502063,1725720635680,-499.9999,0.001,120]
[337502064,1725720635704,-750.0,0.00100937,120]
[337502065,1725720635728,-3000.0,0.00101435,120]
[337502066,1725720635753,-500.0,0.00104109,120]
[337502067,1725720635793,-500.0,0.00104109,120]
[337502068,1725720635822,-818.77,0.00104109,120]
[337502069,1725720635847,-750.0,0.00104542,120]
[337502070,1725720635871,-190.0,0.00104899,60]
[337502071,1725720635895,-3000.0,0.00105043,120]
[337502072,1725720635919,-750.0,0.00108147,120]
[337502073,1725720635943,-3000.0,0.00108652,120]
[337502074,1725720635968,-150.0,0.001092,120]
[337502075,1725720635998,-167.65,0.001092,120]
[337502076,1725720636023,-500.0,0.00109589,120]
[337502077,1725720636052,-500.0,0.00109589,120]
[337502078,1725720636076,-818.77,0.00109589,120]
[337502079,1725720636102,-44855.7484303,0.0010979,20]
[337502080,1725720636126,-764.32863146,0.001098,2]
[337502081,1725720636151,-287.41346325,0.00109899,120]
[337502082,1725720636176,-8308.07756948,0.00109899,120]
[337502083,1725720636201,-1000.0,0.00109899,120]
[337502084,1725720636226,-241032.06815044,0.001099,120]
[337502085,1725720636251,-480.67,0.001099,120]
[337502086,1725720636277,-749.92,0.0011,60]
[337502087,1725720636301,-2000.0,0.0011,120]
[337502088,1725720636325,-168.217,0.0011,120]
[337502089,1725720636353,-150.0,0.001102,120]
[337502090,1725720636378,-200.0,0.001112,120]
[337502091,1725720636403,-750.0,0.00111752,120]
[337502092,1725720636430,-3000.0,0.00112261,120]
[337502093,1725720636457,-9656.93686373,0.00114849,120]
[337502094,1725720636481,-500.0,0.00115068,120]
[337502095,1725720636509,-500.0,0.00115068,120]
[337502096,1725720636533,-818.77,0.00115068,120]
[337502097,1725720636559,-750.0,0.00115357,120]
[337502098,1725720636583,-5074.62937602,0.00115693,120]
[337502099,1725720636606,-5000.0,0.00115693,120]
[337502100,1725720636630,-3000.0,0.0011587,120]
[337502101,1725720636656,-577.94802102,0.00116078,120]
[337502102,1725720636679,-4256.82172642,0.00116603,120]
[337502103,1725720636703,-200.0,0.00117153,120]
[337502104,1725720636728,-480.0,0.00118005,120]
[337502105,1725720636754,-157.83825873,0.00118598,60]
[337502106,1725720636780,-750.0,0.00118962,120]
[337502107,1725720636809,-10000.0,0.00119,120]
[337502108,1725720636834,-20000.0,0.00119,120]
[337502109,1725720636857,-30000.0,0.00119,120]
[337502110,1725720636881,-3000.0,0.00119478,120]
[337502111,1725720636905,-3000.0,0.001195,120]
[337502112,1725720636929,-619.0,0.0012,60]
[337502113,1725720636953,-10000.0,0.0012,120]
[337502114,1725720636981,-10000.0,0.0012,120]
[337502115,1725720637005,-505.0,0.0012,120]
[337502116,1725720637034,-50000.0,0.0012,120]
[337502117,1725720637061,-500.0,0.00120547,120]
[337502118,1725720637086,-500.0,0.00120547,120]
[337502119,1725720637113,-818.77,0.00120547,120]
[337502120,1725720637138,-50000.0,0.0012222,120]
[337502121,1725720637162,-750.0,0.00122567,120]
[337502122,1725720637187,-3000.0,0.00123087,120]
[337502123,1725720637214,-163.906033,0.00123307,120]
[337502124,1725720637239,-410.1493314,0.00124651,120]
[337502125,1725720637405,-410.1493314,0.00124651,120]
[337502126,1725720637432,-500.0,0.00126027,120]
[337502127,1725720637457,-449.21247074,0.00126027,120]
[337502128,1725720637482,-818.77,0.00126027,120]
[337502129,1725720637506,-750.0,0.00126172,120]
[337502130,1725720637530,-3000.0,0.00126696,120]
[337502131,1725720637558,-1452.6124726,0.00128,110]
[337502132,1725720637582,-251.548936,0.001288,30]
[337502133,1725720637608,-3000.0,0.001295,120]
[337502134,1725720637634,-750.0,0.00129777,120]
[337502135,1725720637659,-2000.0,0.0013,120]
[337502136,1725720637683,-3000.0,0.00130304,120]
[337502137,1725720637710,-240.68475893,0.00131506,120]
[337502138,1725720637735,-818.77,0.00131506,120]
[337502139,1725720637760,-50000.0,0.001333,120]
[337502140,1725720637785,-750.0,0.00133381,120]
[337502141,1725720637813,-3000.0,0.00133913,120]
[337502143,1725720637838,-152.79300731,0.00134249,120]
[337502147,1725720637864,-100000.0,0.001344,30]
[337502151,1725720637890,-9656.93686373,0.001349,120]
[337502152,1725720637915,-12028.1946164,0.00135,120]
[337502153,1725720637939,-5000.0,0.00136986,120]
[337502155,1725720637964,-500.0,0.00136986,120]
[337502157,1725720637992,-500.0,0.00136986,120]
[337502158,1725720638017,-500.0,0.00136986,120]
[337502159,1725720638062,-500.0,0.00136986,120]
[337502160,1725720638091,-514.16581651,0.00136986,120]
[337502164,1725720638117,-888.0,0.00136986,120]
[337502167,1725720638144,-422.91179172,0.00136986,120]
[337502170,1725720638172,-1000.0,0.00136986,120]
[337502174,1725720638200,-1000.0,0.00136986,120]
[337502175,1725720638227,-1000.0,0.00136986,120]
[337502176,1725720638254,-1000.0,0.00136986,120]
[337502177,1725720638281,-1000.0,0.00136986,120]
[337502178,1725720638311,-1000.0,0.00136986,120]
[337502179,1725720638337,-1000.0,0.00136986,120]
[337502180,1725720638363,-1000.0,0.00136986,120]
[337502181,1725720638387,-1000.0,0.00136986,120]
[337502182,1725720638412,-1000.0,0.00136986,120]
[337502183,1725720638439,-1000.0,0.00136986,120]
[337502184,1725720638465,-1000.0,0.00136986,120]
[337502185,1725720638490,-1000.0,0.00136986,120]
[337502186,1725720638521,-1000.0,0.00136986,120]
[337502187,1725720638550,-1000.0,0.00136986,120]
[337502188,1725720638575,-1000.0,0.00136986,120]
[337502189,1725720638600,-818.77,0.00136986,120]
[337502190,1725720638629,-750.0,0.00136986,120]
[337502191,1725720638655,-3000.0,0.00137522,120]
[337502192,1725720638680,-3000.0,0.001395,120]
[337502193,1725720638704,-13063.94024639,0.0014,120]
[337502194,1725720638752,-410.1493314,0.00140384,120]
[337502195,1725720638762,-410.1493314,0.00140384,120]
[337502196,1725720638772,-3000.0,0.0014113,120]
[337502197,1725720638783,-1000.0,0.00142465,120]
[337502198,1725720638793,-818.77,0.00142465,120]
[337502199,1725720638807,-152.79300731,0.00144249,120]
[337502200,1725720638818,-4376.80501593,0.0014444,120]
[337502201,1725720638830,-434.4293937,0.0014444,120]
[337502202,1725720638842,-736.02,0.0014444,120]
[337502203,1725720638855,-272.0,0.0014444,120]
[337502204,1725720638867,-1067.53788787,0.0014444,120]
[337502205,1725720639143,-33.63190151,0.0014444,120]
[337502206,1725720639156,-53079.57580099,0.0014444,120]
[337502207,1725720639166,-3000.0,0.00144739,120]
[337502208,1725720639176,-862.2681327,0.00146685,120]
[337502209,1725720639187,-1000.0,0.00147945,120]
[337502210,1725720639198,-818.77,0.00147945,120]
[337502211,1725720639208,-3000.0,0.00148348,120]
[337502212,1725720639218,-208.1608168,0.00148466,120]
[337502213,1725720639228,-208.135659,0.00148466,120]
[337502214,1725720639240,-208.1061349,0.00148466,120]
[337502215,1725720639249,-208.1608168,0.00148466,120]
[337502216,1725720639260,-494.606293,0.00149288,120]
[337502217,1725720639270,-415.7964422,0.00149288,120]
[337502218,1725720639280,-440.0,0.00149336,120]
[337502219,1725720639289,-19605.99192856,0.001498,120]
[337502220,1725720639323,432.03236848,0.00046564,120]
[337502221,1725720639358,500.0,0.00046564,120]
[337502222,1725720639396,370.50709121,0.00046564,120]
[337502223,1725720639452,936.05,0.0010989,3]
[337502224,1725720639573,-51.25362481,0.001498,120]
[337502225,1725720639584,-89627.47673499,0.001498,120]
[337502226,1725720639740,-596.29,0.001498,120]
[337502279,1725720640459,-3181.44,0.001498,120]
[337502282,1725720640471,-67561.86295187,0.001498,120]
[337502565,1725720643381,-659375.68475977,0.001498,120]
[337502567,1725720643391,-5000.0,0.0015,120]
[337502569,1725720643400,-2016.78335,0.0015,120]
[337502571,1725720643409,-10000.0,0.0015,120]
[337502573,1725720643419,-201695.8326125,0.0015,120]
[337502575,1725720643429,-11417.84138201,0.0015,120]
[337502577,1725720643438,-508.53430897,0.0015,120]
[337502579,1725720643448,-5071.92181252,0.0015,120]
[337502582,1725720643457,-1800.0,0.0015,120]
[337502585,1725720643466,-2498.24475398,0.0015,120]
[337502588,1725720643476,-1000.0,0.00150684,7]
[337502590,1725720643485,-1000.0,0.00150684,7]
[337502592,1725720643494,-1000.0,0.00150684,7]
[337502594,1725720643504,-1000.0,0.00150684,7]
[337502596,1725720643513,-1000.0,0.00150684,7]
[337502599,1725720643523,-1000.0,0.00150684,7]
[337502601,1725720643533,-1000.0,0.00150684,7]
[337502603,1725720643542,-1000.0,0.00150684,7]
[337502605,1725720643553,-1000.0,0.00150684,7]
[337502607,1725720643563,-1000.0,0.00150684,7]
[337502609,1725720643573,-1000.0,0.00150684,7]
[337502611,1725720643583,-1000.0,0.00150684,7]
[337502613,1725720643593,-1000.0,0.00150684,7]
[337502615,1725720643602,-1000.0,0.00150684,7]
[337502617,1725720643611,-1000.0,0.00150684,7]
[337502619,1725720643621,-1000.0,0.00150684,7]
[337502621,1725720643630,-1145.91447662,0.00150684,7]
[337502623,1725720643641,-2000.0,0.00151,30]
[337502625,1725720643650,-3000.0,0.00151957,120]
[337502627,1725720643659,-200000.0,0.001532,30]
[337502629,1725720643669,-1000.0,0.00153424,120]
[337502631,1725720643679,-818.77,0.00153424,120]
[337502633,1725720643688,-152.79300731,0.00154249,120]
[337502635,1725720643697,-60000.0,0.0015555,120]
[337502637,1725720643708,-20719.2452975,0.00155556,120]
[337502639,1725720643717,-3000.0,0.00155565,120]
[337502641,1725720643727,-381.9893568,0.00156466,120]
[337502643,1725720643737,-184.7365135,0.00157288,120]
[337502645,1725720643747,-153.0,0.00157288,120]
[337502647,1725720643759,-153.0,0.00157288,120]
[337502649,1725720643769,-306.0,0.00157288,120]
[337502651,1725720643779,-153.0,0.00157288,120]
[337502653,1725720643788,-820.2986628,0.00158318,120]
[337502655,1725720643798,-659.4560794,0.00158318,120]
[337502657,1725720643809,-1011.04596848,0.00158904,120]
[337502659,1725720643819,-818.77,0.00158904,120]
[337502661,1725720643829,-3000.0,0.00159174,120]
[337502663,1725720643839,-3000.0,0.00162783,120]
[337502665,1725720643849,-152.79300731,0.00164249,120]
[337502667,1725720643858,-5000.0,0.00164383,120]
[337502669,1725720643868,-818.77,0.00164383,120]
[337502671,1725720643879,-904.52,0.00166,120]
[337502673,1725720643889,-1000.0,0.00166,120]
[337502675,1725720643899,-5547.21894255,0.00166,120]
[337502677,1725720643908,-2098.46234868,0.00166391,120]
[337502679,1725720643917,-410.1493314,0.00166503,120]
[337502681,1725720643927,-60000.0,0.001666,120]
[337502683,1725720643937,-57696.292143,0.001666,120]
[337502685,1725720643947,-552.03927607,0.00167,120]
[337502688,1725720643957,-5544.0,0.00167,120]
[337502690,1725720643968,-550.0,0.00168,120]
[337502692,1725720643979,-5544.0,0.00168,120]
[337502694,1725720643990,-550.0,0.00169,120]
[337502696,1725720643999,-5544.0,0.00169,120]
[337502698,1725720644010,-163.906033,0.0016906,120]
[337502700,1725720644020,-400000.0,0.0016944,120]
[337502702,1725720644030,-500.0,0.00169475,120]
[337502704,1725720644041,-818.77,0.00169863,120]
[337502706,1725720644052,-1000.0,0.00169999,120]
[337502708,1725720644063,-29833.07719843,0.0017,120]
[337502710,1725720644073,-2000.0,0.0017,120]
[337502712,1725720644082,-550.0,0.0017,120]
[337502714,1725720644092,-5544.0,0.0017,120]
[337502716,1725720644103,-678.12336985,0.0017,120]
[337502718,1725720644113,-171.7306,0.00170609,120]
[337502720,1725720644122,-255.0,0.001708,120]
[337502722,1725720644132,-200.0,0.001718,120]
[337502724,1725720644142,-400000.0,0.0017222,30]
[337502726,1725720644152,-306.0,0.001728,120]
[337502728,1725720644162,-200.0,0.001728,120]
[337502730,1725720644172,-250000.0,0.001738,120]
[337502732,1725720644182,-300.0,0.001738,120]
[337502734,1725720644192,-200.0,0.001738,120]
[337502736,1725720644202,-151.0,0.001738,120]
[337502738,1725720644212,-152.79300731,0.00174249,120]
[337502740,1725720644221,-300.0,0.001748,120]
[337502742,1725720644231,-200.0,0.001748,120]
[337502744,1725720644242,-818.77,0.00175342,120]
[337502746,1725720644252,-300.0,0.001758,120]
[337502748,1725720644262,-200.0,0.001758,120]
[337502750,1725720644271,-10311.465335,0.00176,120]
[337502752,1725720644281,-300.0,0.001768,120]
[337502754,1725720644291,-200.0,0.001768,120]
[337502756,1725720644301,-5000.0,0.00176889,120]
[337502758,1725720644312,-249777.49644134,0.00177,50]
[337502760,1725720644322,-716993.63831942,0.00177,50]
[337502762,1725720644332,-46406.56944157,0.00177,50]
[337502764,1725720644341,-188.54,0.00177,60]
[337502767,1725720644352,-151.0,0.00177,120]
[337502769,1725720644362,-55098.55080096,0.0017777,120]
[337502770,1725720644371,-818.86317011,0.00180821,120]
[337502771,1725720644381,-1228.4232281,0.00180952,120]
[337502772,1725720644391,-380.0,0.00182344,120]
[337502773,1725720644400,-45692.11757198,0.00184,120]
[337502774,1725720644410,-152.79300731,0.00184249,120]
[337502775,1725720644419,-30000.0,0.001895,120]
[337502781,1725720644550,-41506.50600753,0.0019,120]
[337502783,1725720644560,-4000.0,0.0019,120]
[337502785,1725720644571,-12991.430195,0.0019,120]
[337502787,1725720644583,-170.16,0.00191,60]
[337502790,1725720644595,-749.92,0.00191,60]
[337502792,1725720644605,-5000.0,0.0019178,120]
[337502794,1725720644615,-5000.0,0.0019178,120]
[337502796,1725720644626,-5000.0,0.0019178,120]
[337502798,1725720644637,-152.79300731,0.00194249,120]
[337502800,1725720644649,-3654.16764867,0.00195,120]
[337502802,1725720644658,-78497.5597529,0.00196111,60]
[337502804,1725720644668,-6000.0,0.00199,120]
[337502806,1725720644677,-363.88295472,0.00199999,31]
[337502808,1725720644686,-500.0,0.00199999,120]
[337502810,1725720644696,-327.5404781,0.00199999,120]
[337502812,1725720644706,-508.07552646,0.00199999,120]
[337502814,1725720644715,-500.0,0.00199999,120]
[337502815,1725720644724,-500.0,0.00199999,120]
[337502817,1725720644733,-500.0,0.00199999,120]
[337502819,1725720644742,-531.18321283,0.00199999,120]
[337502821,1725720644752,-503.01404323,0.002,120]
[337502823,1725720644762,-2498.24475398,0.002,120]
[337502825,1725720644771,-163.25407427,0.002,120]
[337502827,1725720644780,-1000.0,0.002,120]
[337502829,1725720644790,-600.0,0.002,120]
[337502831,1725720644800,-300.0,0.002,120]
[337502833,1725720644810,-5000.0,0.002,120]
[337502835,1725720644821,-10000.0,0.002,120]
[337502837,1725720644831,-5000.0,0.002,120]
[337502840,1725720644843,-500.0,0.002,120]
[337502842,1725720644853,-152.79300731,0.00204249,120]
[337502844,1725720644863,-5000.0,0.00204286,120]
[337502846,1725720644872,-55000.0,0.00211999,120]
[337502848,1725720644882,-152.79300731,0.00214249,120]
[337502850,1725720644893,-403.36043964,0.00216493,120]
[337502852,1725720644902,-30000.0,0.00219,120]
[337502854,1725720644912,-5000.0,0.00219178,120]
[337502856,1725720644923,-5000.0,0.00219178,120]
[337502858,1725720644934,-5000.0,0.00219178,120]
[337502860,1725720644945,-410.1493314,0.00219452,120]
[337502863,1725720644955,-152.79300731,0.00224249,120]
[337502865,1725720644965,-5000.0,0.00231684,120]
[337502867,1725720644975,-152.79300731,0.00234249,120]
[337502869,1725720644988,-2000.0,0.00242539,120]
[337502871,1725720644997,-152.79300731,0.00244249,120]
[337502873,1725720645007,-200000.0,0.002444,120]
[337502875,1725720645016,-55000.0,0.0024499,120]
[337502877,1725720645026,-5000.0,0.00246575,120]
[337502879,1725720645035,-5000.0,0.00246575,120]
[337502881,1725720645044,-5000.0,0.00246575,120]
[337502883,1725720645053,-2498.24475398,0.0025,120]
[337502885,1725720645065,-65989.98,0.0025,60]
[337502887,1725720645075,-6000.0,0.0025,120]
[337502889,1725720645084,-152.79300731,0.00254249,120]
[337502891,1725720645093,-193.31075147,0.00257,120]
[337502892,1725720645103,-5000.0,0.00259081,120]
[337502894,1725720645113,-152.79300731,0.00264249,120]
[337502896,1725720645122,-5000.0,0.00273972,120]
[337502898,1725720645131,-5000.0,0.00273972,120]
[337502900,1725720645141,-5000.0,0.00273972,120]
[337502902,1725720645150,-151.0,0.00273973,120]
[337502904,1725720645161,-151.0,0.00273973,120]
[337502906,1725720645171,-152.79300731,0.00274249,120]
[337502908,1725720645181,-6500.0,0.0028,120]
[337502910,1725720645190,-152.79300731,0.00284249,120]
[337502912,1725720645200,-5000.0,0.00286478,120]
[337502914,1725720645210,-2000.0,0.002888,120]
[337502916,1725720645219,-30000.0,0.002895,120]